[Event "Early-Titled-Tuesday-Blitz-February-06-2024"]
[Site "Chess.com"]
[Date "2024.02.06"]
[Round "7"]
[White "Levanzovsky"]
[Black "BallottiLuca"]
[Result "1-0"]
[WhiteElo "2518"]
[BlackElo "2359"]
[TimeControl "180+1"]
[EndTime "9:18:09 PST"]
[Termination "Levanzovsky won by checkmate"]

1. d4 {[%clk 0:03:00.9]} 1... Nf6 {[%clk 0:02:59.3]} 2. c4 {[%clk 0:03:01.4]}
2... g6 {[%clk 0:02:59.1]} 3. Nc3 {[%clk 0:03:01.7]} 3... Bg7 {[%clk 0:02:58.6]}
4. e4 {[%clk 0:03:02.1]} 4... d6 {[%clk 0:02:54.8]} 5. Be2 {[%clk 0:03:02.5]}
5... O-O {[%clk 0:02:54]} 6. Be3 {[%clk 0:03:03]} 6... e5 {[%clk 0:02:50.1]} 7.
d5 {[%clk 0:03:02.7]} 7... Na6 {[%clk 0:02:48.7]} 8. h4 {[%clk 0:03:02.8]} 8...
Nc5 {[%clk 0:02:46.7]} 9. f3 {[%clk 0:02:51.2]} 9... Nh5 {[%clk 0:02:33.9]} 10.
b4 {[%clk 0:02:11.8]} 10... Na6 {[%clk 0:02:20.5]} 11. a3 {[%clk 0:02:10.9]}
11... Nf4 {[%clk 0:02:17.8]} 12. Bf1 {[%clk 0:02:08]} 12... f5 {[%clk
0:02:14.8]} 13. Nge2 {[%clk 0:01:58.3]} 13... fxe4 {[%clk 0:02:12.5]} 14. Nxe4
{[%clk 0:01:59.2]} 14... c6 {[%clk 0:01:54.4]} 15. dxc6 {[%clk 0:01:53.3]} 15...
bxc6 {[%clk 0:01:54]} 16. Qxd6 {[%clk 0:01:40.1]} 16... Nd3+ {[%clk 0:01:52.4]}
17. Kd2 {[%clk 0:01:40.2]} 17... Qxd6 {[%clk 0:01:30.6]} 18. Nxd6 {[%clk
0:01:41.1]} 18... e4 {[%clk 0:01:31.1]} 19. Bd4 {[%clk 0:01:39.9]} 19... Bh6+
{[%clk 0:01:20.1]} 20. Kc3 {[%clk 0:01:20.9]} 20... exf3 {[%clk 0:01:19.3]} 21.
gxf3 {[%clk 0:01:13.6]} 21... c5 {[%clk 0:01:07.3]} 22. Kxd3 {[%clk 0:00:53.5]}
22... cxd4 {[%clk 0:01:07.1]} 23. Nxd4 {[%clk 0:00:51.9]} 23... Bg7 {[%clk
0:00:47.3]} 24. c5 {[%clk 0:00:47.3]} 24... Rf4 {[%clk 0:00:38.5]} 25. Ne4
{[%clk 0:00:37.5]} 25... Bf5 {[%clk 0:00:31.4]} 26. Ke3 {[%clk 0:00:30.3]} 26...
Bxd4+ {[%clk 0:00:25.3]} 27. Kxf4 {[%clk 0:00:19.3]} 27... Bxa1 {[%clk
0:00:14.6]} 28. Bxa6 {[%clk 0:00:19.1]} 28... Bd4 {[%clk 0:00:12.2]} 29. Rd1
{[%clk 0:00:16]} 29... Rd8 {[%clk 0:00:11.3]} 30. Nd6 {[%clk 0:00:16.6]} 30...
Bg7 {[%clk 0:00:06.7]} 31. Bc4+ {[%clk 0:00:16.5]} 31... Kf8 {[%clk 0:00:07.2]}
32. Re1 {[%clk 0:00:10.9]} 32... Bh6+ {[%clk 0:00:06]} 33. Kg3 {[%clk
0:00:10.9]} 33... g5 {[%clk 0:00:03.5]} 34. Nxf5 {[%clk 0:00:06.8]} 34... gxh4+
{[%clk 0:00:03.2]} 35. Kg4 {[%clk 0:00:05.8]} 35... Bg7 {[%clk 0:00:02.1]} 36.
Re7 {[%clk 0:00:06.4]} 36... Bf6 {[%clk 0:00:01.9]} 37. Rf7+ {[%clk 0:00:06.4]}
37... Kg8 {[%clk 0:00:01.7]} 38. Rxf6+ {[%clk 0:00:04.5]} 38... Kh8 {[%clk
0:00:01.1]} 39. c6 {[%clk 0:00:04.5]} 39... h5+ {[%clk 0:00:01.7]} 40. Kxh5
{[%clk 0:00:04]} 40... h3 {[%clk 0:00:02.6]} 41. c7 {[%clk 0:00:04.5]} 41... Rc8
{[%clk 0:00:02.7]} 42. Rh6# {[%clk 0:00:04.9]} 1-0

[Event "Early-Titled-Tuesday-Blitz-February-06-2024"]
[Site "Chess.com"]
[Date "2024.02.06"]
[Round "7"]
[White "Fandorine"]
[Black "AlexeiShirov"]
[Result "1-0"]
[WhiteElo "2966"]
[BlackElo "2782"]
[TimeControl "180+1"]
[EndTime "9:18:12 PST"]
[Termination "Fandorine won on time"]

1. c4 {[%clk 0:03:00.9]} 1... c6 {[%clk 0:02:58.8]} 2. Nf3 {[%clk 0:03:01]} 2...
d5 {[%clk 0:02:58.6]} 3. e3 {[%clk 0:03:01.3]} 3... Nf6 {[%clk 0:02:58.4]} 4.
Nc3 {[%clk 0:03:01.3]} 4... Nbd7 {[%clk 0:02:57.9]} 5. Qc2 {[%clk 0:03:01.1]}
5... e5 {[%clk 0:02:56.4]} 6. cxd5 {[%clk 0:03:01.4]} 6... Nxd5 {[%clk
0:02:56.4]} 7. Bc4 {[%clk 0:03:02]} 7... Nb4 {[%clk 0:02:54.4]} 8. Qf5 {[%clk
0:03:01.5]} 8... Nf6 {[%clk 0:02:46.9]} 9. Qxe5+ {[%clk 0:03:00.2]} 9... Be7
{[%clk 0:02:46.6]} 10. O-O {[%clk 0:02:53.3]} 10... b5 {[%clk 0:02:28.8]} 11.
Be2 {[%clk 0:02:48.5]} 11... O-O {[%clk 0:02:23.9]} 12. d4 {[%clk 0:02:41]}
12... h6 {[%clk 0:02:22.6]} 13. Qf4 {[%clk 0:02:27.5]} 13... g5 {[%clk
0:02:06.7]} 14. Nxg5 {[%clk 0:02:15.7]} 14... hxg5 {[%clk 0:02:05.7]} 15. Qxg5+
{[%clk 0:02:15.8]} 15... Kh8 {[%clk 0:02:05.7]} 16. e4 {[%clk 0:01:51.3]} 16...
Rg8 {[%clk 0:02:03.9]} 17. Qh6+ {[%clk 0:01:49.8]} 17... Nh7 {[%clk 0:02:03.2]}
18. d5 {[%clk 0:01:41.3]} 18... Bg5 {[%clk 0:01:43.5]} 19. Bxg5 {[%clk
0:01:26.2]} 19... Qxg5 {[%clk 0:01:43.3]} 20. Qxg5 {[%clk 0:01:24.9]} 20... Nxg5
{[%clk 0:01:40.6]} 21. f4 {[%clk 0:01:21.5]} 21... Nh7 {[%clk 0:01:19.6]} 22.
Rac1 {[%clk 0:00:59.2]} 22... cxd5 {[%clk 0:01:13]} 23. a3 {[%clk 0:00:59.1]}
23... d4 {[%clk 0:01:08.9]} 24. Nxb5 {[%clk 0:00:50.8]} 24... d3 {[%clk
0:01:07.1]} 25. Bf3 {[%clk 0:00:26.9]} 25... Ba6 {[%clk 0:00:30.6]} 26. Nd6
{[%clk 0:00:26]} 26... d2 {[%clk 0:00:29.8]} 27. axb4 {[%clk 0:00:26.2]} 27...
dxc1=Q {[%clk 0:00:27.9]} 28. Rxc1 {[%clk 0:00:27.1]} 28... Rgf8 {[%clk
0:00:25.4]} 29. b5 {[%clk 0:00:22.1]} 29... Bc8 {[%clk 0:00:23.3]} 30. e5 {[%clk
0:00:21.7]} 30... Rb8 {[%clk 0:00:23.2]} 31. Rc7 {[%clk 0:00:18.6]} 31... Be6
{[%clk 0:00:21.4]} 32. Rxa7 {[%clk 0:00:18.2]} 32... f6 {[%clk 0:00:21.2]} 33.
f5 {[%clk 0:00:15.4]} 33... Bb3 {[%clk 0:00:19]} 34. e6 {[%clk 0:00:15.8]} 34...
Ng5 {[%clk 0:00:18.1]} 35. Bc6 {[%clk 0:00:15.8]} 35... Rfd8 {[%clk 0:00:16.7]}
36. Rd7 {[%clk 0:00:11.3]} 36... Rxd7 {[%clk 0:00:14]} 37. Bxd7 {[%clk
0:00:11.8]} 37... Kg7 {[%clk 0:00:08]} 38. h4 {[%clk 0:00:10.7]} 38... Nh7
{[%clk 0:00:07.3]} 39. e7 {[%clk 0:00:11.4]} 39... Bf7 {[%clk 0:00:06.9]} 40. b6
{[%clk 0:00:11.4]} 40... Bh5 {[%clk 0:00:05.7]} 41. b7 {[%clk 0:00:11.1]} 41...
Kg8 {[%clk 0:00:03.5]} 42. b4 {[%clk 0:00:11.1]} 1-0

[Event "Early-Titled-Tuesday-Blitz-February-06-2024"]
[Site "Chess.com"]
[Date "2024.02.06"]
[Round "7"]
[White "BestestBP"]
[Black "stratacticos"]
[Result "1-0"]
[WhiteElo "2249"]
[BlackElo "2045"]
[TimeControl "180+1"]
[EndTime "9:18:12 PST"]
[Termination "BestestBP won by resignation"]

1. e4 {[%clk 0:02:51.9]} 1... c5 {[%clk 0:02:58.4]} 2. Nf3 {[%clk 0:02:49.2]}
2... Nc6 {[%clk 0:02:57.9]} 3. d4 {[%clk 0:02:49.9]} 3... cxd4 {[%clk
0:02:57.8]} 4. Nxd4 {[%clk 0:02:49.8]} 4... e5 {[%clk 0:02:58.7]} 5. Nb5 {[%clk
0:02:47.8]} 5... a6 {[%clk 0:02:58.7]} 6. Nd6+ {[%clk 0:02:47.4]} 6... Bxd6
{[%clk 0:02:58.4]} 7. Qxd6 {[%clk 0:02:48.3]} 7... Qf6 {[%clk 0:02:58.9]} 8.
Qxf6 {[%clk 0:02:44.1]} 8... Nxf6 {[%clk 0:02:58.4]} 9. Nc3 {[%clk 0:02:43.6]}
9... O-O {[%clk 0:02:50.8]} 10. Bg5 {[%clk 0:02:41.2]} 10... Ne8 {[%clk
0:02:41.3]} 11. O-O-O {[%clk 0:02:38.3]} 11... f6 {[%clk 0:02:40.9]} 12. Be3
{[%clk 0:02:30.1]} 12... b5 {[%clk 0:02:33.5]} 13. f3 {[%clk 0:02:09.1]} 13...
d6 {[%clk 0:02:16.2]} 14. Nd5 {[%clk 0:02:01.5]} 14... Be6 {[%clk 0:02:15.8]}
15. Kb1 {[%clk 0:01:42.8]} 15... Bxd5 {[%clk 0:02:10.2]} 16. Rxd5 {[%clk
0:01:40.6]} 16... Ne7 {[%clk 0:02:10]} 17. Rd2 {[%clk 0:01:39.8]} 17... Rd8
{[%clk 0:02:07.5]} 18. a4 {[%clk 0:01:36.7]} 18... d5 {[%clk 0:02:06.6]} 19.
exd5 {[%clk 0:01:33.7]} 19... Rxd5 {[%clk 0:02:04.9]} 20. axb5 {[%clk
0:01:24.2]} 20... Rxd2 {[%clk 0:02:01.5]} 21. Bxd2 {[%clk 0:01:23.5]} 21... axb5
{[%clk 0:02:01.6]} 22. Bxb5 {[%clk 0:01:24]} 22... Nd6 {[%clk 0:02:01.1]} 23.
Bd3 {[%clk 0:01:21.2]} 23... Rb8 {[%clk 0:01:53]} 24. Rd1 {[%clk 0:00:55.9]}
24... Nc6 {[%clk 0:01:48.9]} 25. Bc3 {[%clk 0:00:48.5]} 25... Nb5 {[%clk
0:01:42.9]} 26. Bc4+ {[%clk 0:00:44.9]} 26... Kf8 {[%clk 0:01:42.1]} 27. Bxb5
{[%clk 0:00:34.2]} 27... Rxb5 {[%clk 0:01:41.2]} 28. Rd6 {[%clk 0:00:34.8]}
28... Rc5 {[%clk 0:01:30.6]} 29. Rd3 {[%clk 0:00:21.6]} 29... Ke7 {[%clk
0:01:28.3]} 30. b3 {[%clk 0:00:20.6]} 30... Ke6 {[%clk 0:01:24.7]} 31. Kb2
{[%clk 0:00:20.9]} 31... f5 {[%clk 0:01:20.5]} 32. Rd1 {[%clk 0:00:14.8]} 32...
g5 {[%clk 0:01:18.7]} 33. g3 {[%clk 0:00:13.9]} 33... h5 {[%clk 0:01:18.2]} 34.
b4 {[%clk 0:00:11.3]} 34... Rc4 {[%clk 0:01:17.6]} 35. Kb3 {[%clk 0:00:11.1]}
35... Rd4 {[%clk 0:01:03.8]} 36. Bxd4 {[%clk 0:00:11]} 36... Nxd4+ {[%clk
0:01:03.8]} 37. Kc4 {[%clk 0:00:11.3]} 37... Nxf3 {[%clk 0:01:03.6]} 38. b5
{[%clk 0:00:10.8]} 38... e4 {[%clk 0:01:01.7]} 39. b6 {[%clk 0:00:10]} 39... e3
{[%clk 0:00:59.9]} 40. b7 {[%clk 0:00:10.2]} 40... e2 {[%clk 0:00:59.9]} 41. Ra1
{[%clk 0:00:09.6]} 41... Ne5+ {[%clk 0:00:55.6]} 42. Kc3 {[%clk 0:00:08]} 42...
Nd7 {[%clk 0:00:48.4]} 43. Kd2 {[%clk 0:00:07.7]} 43... f4 {[%clk 0:00:46.7]}
44. gxf4 {[%clk 0:00:05]} 44... gxf4 {[%clk 0:00:46.3]} 45. Kxe2 {[%clk
0:00:05.1]} 45... h4 {[%clk 0:00:34.4]} 46. Rb1 {[%clk 0:00:04.2]} 46... Nb8
{[%clk 0:00:33.4]} 47. Rd1 {[%clk 0:00:04.6]} 47... Ke7 {[%clk 0:00:27.6]} 48.
c4 {[%clk 0:00:04.6]} 1-0

[Event "Early-Titled-Tuesday-Blitz-February-06-2024"]
[Site "Chess.com"]
[Date "2024.02.06"]
[Round "7"]
[White "JohnWhite1952"]
[Black "igorknyazev"]
[Result "0-1"]
[WhiteElo "1952"]
[BlackElo "2139"]
[TimeControl "180+1"]
[EndTime "9:18:13 PST"]
[Termination "igorknyazev won on time"]

1. e4 {[%clk 0:03:00.4]} 1... e5 {[%clk 0:02:57]} 2. Nf3 {[%clk 0:02:59.2]} 2...
Nf6 {[%clk 0:02:55.5]} 3. Nc3 {[%clk 0:02:53.7]} 3... Bb4 {[%clk 0:02:55.6]} 4.
d3 {[%clk 0:02:49.3]} 4... O-O {[%clk 0:02:55.5]} 5. Bd2 {[%clk 0:02:47.9]} 5...
Nc6 {[%clk 0:02:53.2]} 6. Be2 {[%clk 0:02:46.5]} 6... d5 {[%clk 0:02:52.1]} 7.
exd5 {[%clk 0:02:42.2]} 7... Nxd5 {[%clk 0:02:49.4]} 8. Nxd5 {[%clk 0:02:37.6]}
8... Bxd2+ {[%clk 0:02:44.8]} 9. Qxd2 {[%clk 0:02:35.2]} 9... Qxd5 {[%clk
0:02:45.7]} 10. O-O {[%clk 0:02:31.7]} 10... Nd4 {[%clk 0:02:35.3]} 11. Nxd4
{[%clk 0:02:28.1]} 11... Qxd4 {[%clk 0:02:21.7]} 12. Rfe1 {[%clk 0:02:23.6]}
12... Qxb2 {[%clk 0:02:17.6]} 13. Bf3 {[%clk 0:02:18.9]} 13... c6 {[%clk
0:02:14.6]} 14. Reb1 {[%clk 0:02:07.1]} 14... Qd4 {[%clk 0:02:11.2]} 15. g3
{[%clk 0:02:03.7]} 15... f5 {[%clk 0:02:02.4]} 16. Kg2 {[%clk 0:02:01.5]} 16...
e4 {[%clk 0:01:56.8]} 17. Be2 {[%clk 0:01:58.4]} 17... b5 {[%clk 0:01:49.8]} 18.
Qf4 {[%clk 0:01:47]} 18... a6 {[%clk 0:01:35.4]} 19. Qc7 {[%clk 0:01:44.5]}
19... Qd5 {[%clk 0:01:17.3]} 20. a4 {[%clk 0:01:40.8]} 20... Rf7 {[%clk
0:01:10.6]} 21. Qf4 {[%clk 0:01:33.1]} 21... Bb7 {[%clk 0:01:08.6]} 22. f3
{[%clk 0:01:01.1]} 22... h6 {[%clk 0:00:50.8]} 23. axb5 {[%clk 0:00:56.2]} 23...
cxb5 {[%clk 0:00:46.9]} 24. dxe4 {[%clk 0:00:50.8]} 24... fxe4 {[%clk
0:00:45.1]} 25. Qxe4 {[%clk 0:00:43.2]} 25... Qd2 {[%clk 0:00:35.4]} 26. Qd3
{[%clk 0:00:36.2]} 26... Bxf3+ {[%clk 0:00:31.6]} 27. Kg1 {[%clk 0:00:28.6]}
27... Qxe2 {[%clk 0:00:30.9]} 28. Qxe2 {[%clk 0:00:21.5]} 28... Bxe2 {[%clk
0:00:31.1]} 29. Re1 {[%clk 0:00:20.6]} 29... Bc4 {[%clk 0:00:27.3]} 30. Re5
{[%clk 0:00:19.5]} 30... a5 {[%clk 0:00:26.7]} 31. c3 {[%clk 0:00:17.9]} 31...
a4 {[%clk 0:00:26.9]} 32. Rc5 {[%clk 0:00:15.2]} 32... Raf8 {[%clk 0:00:26]} 33.
Re5 {[%clk 0:00:13.9]} 33... Rf1+ {[%clk 0:00:24.4]} 34. Rxf1 {[%clk 0:00:12.8]}
34... Rxf1+ {[%clk 0:00:24.3]} 35. Kg2 {[%clk 0:00:13.7]} 35... a3 {[%clk
0:00:22.9]} 36. Re8+ {[%clk 0:00:13.1]} 36... Kh7 {[%clk 0:00:22.6]} 37. Ra8
{[%clk 0:00:14]} 37... Ra1 {[%clk 0:00:19.6]} 38. Kf2 {[%clk 0:00:13.4]} 38...
a2 {[%clk 0:00:19.4]} 39. Kg2 {[%clk 0:00:11.5]} 39... Bd5+ {[%clk 0:00:18.5]}
40. Kh3 {[%clk 0:00:11.2]} 40... Bxa8 {[%clk 0:00:19.2]} 41. Kg4 {[%clk
0:00:09.9]} 41... Rh1 {[%clk 0:00:20.1]} 0-1

[Event "Early-Titled-Tuesday-Blitz-February-06-2024"]
[Site "Chess.com"]
[Date "2024.02.06"]
[Round "7"]
[White "tetrix83"]
[Black "Genghis_K"]
[Result "0-1"]
[WhiteElo "2592"]
[BlackElo "2913"]
[TimeControl "180+1"]
[EndTime "9:18:17 PST"]
[Termination "Genghis_K won on time"]

1. e4 {[%clk 0:03:00.9]} 1... c5 {[%clk 0:02:58.4]} 2. Nf3 {[%clk 0:03:00.5]}
2... d6 {[%clk 0:02:59.1]} 3. Bb5+ {[%clk 0:02:59.7]} 3... Bd7 {[%clk
0:02:59.3]} 4. Bxd7+ {[%clk 0:02:58.3]} 4... Nxd7 {[%clk 0:03:00.2]} 5. O-O
{[%clk 0:02:57.4]} 5... e6 {[%clk 0:03:00.6]} 6. c3 {[%clk 0:02:55]} 6... Ngf6
{[%clk 0:02:53.9]} 7. Qe2 {[%clk 0:02:54.7]} 7... Be7 {[%clk 0:02:52.5]} 8. d4
{[%clk 0:02:54.5]} 8... O-O {[%clk 0:02:48.9]} 9. Rd1 {[%clk 0:02:48.7]} 9...
Rc8 {[%clk 0:02:29.9]} 10. Bf4 {[%clk 0:02:28.1]} 10... d5 {[%clk 0:02:19.7]}
11. e5 {[%clk 0:02:25.4]} 11... Ne4 {[%clk 0:02:19.2]} 12. Nbd2 {[%clk
0:02:20.7]} 12... Nxd2 {[%clk 0:02:16.1]} 13. Qxd2 {[%clk 0:02:14.7]} 13... cxd4
{[%clk 0:02:02.8]} 14. cxd4 {[%clk 0:02:15.6]} 14... Qb6 {[%clk 0:02:00.8]} 15.
h4 {[%clk 0:02:13.2]} 15... Rc6 {[%clk 0:01:53.9]} 16. h5 {[%clk 0:02:10.9]}
16... Rfc8 {[%clk 0:01:53.2]} 17. Ne1 {[%clk 0:02:04.2]} 17... Bb4 {[%clk
0:01:47.6]} 18. Qe3 {[%clk 0:01:45.2]} 18... Bxe1 {[%clk 0:01:40.7]} 19. Rxe1
{[%clk 0:01:46.1]} 19... Rc2 {[%clk 0:01:31.7]} 20. h6 {[%clk 0:01:43.5]} 20...
g6 {[%clk 0:01:28.4]} 21. Bg5 {[%clk 0:01:19.5]} 21... Rxb2 {[%clk 0:01:19.9]}
22. Rac1 {[%clk 0:01:15.3]} 22... Rbc2 {[%clk 0:01:17.8]} 23. Rb1 {[%clk
0:01:13.8]} 23... Qa6 {[%clk 0:01:10.9]} 24. Rb3 {[%clk 0:01:05.7]} 24... b6
{[%clk 0:01:06.9]} 25. Qf4 {[%clk 0:01:05]} 25... Re2 {[%clk 0:00:49.2]} 26. Rc1
{[%clk 0:00:49]} 26... Re4 {[%clk 0:00:30.5]} 27. Qd2 {[%clk 0:00:41]} 27... Rc4
{[%clk 0:00:24.4]} 28. Be3 {[%clk 0:00:36.2]} 28... f6 {[%clk 0:00:22.5]} 29.
exf6 {[%clk 0:00:34.6]} 29... Nxf6 {[%clk 0:00:22.1]} 30. Rbc3 {[%clk
0:00:33.1]} 30... b5 {[%clk 0:00:21.7]} 31. Qb2 {[%clk 0:00:31.6]} 31... Qc6
{[%clk 0:00:18.7]} 32. Qa3 {[%clk 0:00:21.5]} 32... Qd7 {[%clk 0:00:16.2]} 33.
Qa6 {[%clk 0:00:17.4]} 33... Kf7 {[%clk 0:00:15.6]} 34. Rxc4 {[%clk 0:00:12.2]}
34... dxc4 {[%clk 0:00:14]} 35. a4 {[%clk 0:00:12.7]} 35... bxa4 {[%clk
0:00:07.4]} 36. Rxc4 {[%clk 0:00:11.5]} 36... Nd5 {[%clk 0:00:08.1]} 37. Qa5
{[%clk 0:00:07.8]} 37... g5 {[%clk 0:00:06.4]} 38. Rc5 {[%clk 0:00:07.1]} 38...
Kg6 {[%clk 0:00:06.3]} 39. Qa6 {[%clk 0:00:06.4]} 39... Nxe3 {[%clk 0:00:02.9]}
40. Qd3 {[%clk 0:00:05.7]} 40... Qb7 {[%clk 0:00:02.2]} 41. Re5 {[%clk 0:00:05]}
41... Nf5 {[%clk 0:00:02]} 42. Rxe4 {[%clk 0:00:03.6]} 42... Qb3 {[%clk
0:00:02.9]} 43. Qxb3 {[%clk 0:00:01.7]} 43... axb3 {[%clk 0:00:03.8]} 44. Rxe6+
{[%clk 0:00:01.9]} 44... Kf7 {[%clk 0:00:04]} 0-1

[Event "Early-Titled-Tuesday-Blitz-February-06-2024"]
[Site "Chess.com"]
[Date "2024.02.06"]
[Round "7"]
[White "InitiatingASC"]
[Black "Crazy_girl99"]
[Result "1/2-1/2"]
[WhiteElo "2429"]
[BlackElo "2601"]
[TimeControl "180+1"]
[EndTime "9:18:17 PST"]
[Termination "Game drawn by repetition"]

1. d4 {[%clk 0:02:38.6]} 1... Nf6 {[%clk 0:02:51.5]} 2. c4 {[%clk 0:02:37.7]}
2... g6 {[%clk 0:02:51.6]} 3. Nf3 {[%clk 0:02:35.7]} 3... Bg7 {[%clk 0:02:51.4]}
4. g3 {[%clk 0:02:36.3]} 4... O-O {[%clk 0:02:48.8]} 5. Bg2 {[%clk 0:02:36.9]}
5... c6 {[%clk 0:02:43.6]} 6. O-O {[%clk 0:02:34.9]} 6... d5 {[%clk 0:02:43.6]}
7. b3 {[%clk 0:02:33.5]} 7... Re8 {[%clk 0:02:43.5]} 8. Bb2 {[%clk 0:02:33.4]}
8... Bf5 {[%clk 0:02:43.5]} 9. Nbd2 {[%clk 0:02:32.7]} 9... Nbd7 {[%clk
0:02:42.3]} 10. Ne5 {[%clk 0:02:31.1]} 10... h6 {[%clk 0:02:41.1]} 11. Nxd7
{[%clk 0:02:22.1]} 11... Qxd7 {[%clk 0:02:41]} 12. e3 {[%clk 0:02:22.4]} 12...
Bh3 {[%clk 0:02:40.4]} 13. Nf3 {[%clk 0:02:20.2]} 13... Bxg2 {[%clk 0:02:38.9]}
14. Kxg2 {[%clk 0:02:19.9]} 14... Ne4 {[%clk 0:02:39.7]} 15. Nd2 {[%clk
0:02:15.9]} 15... Ng5 {[%clk 0:02:38.7]} 16. f4 {[%clk 0:02:01.8]} 16... Qh3+
{[%clk 0:02:34.9]} 17. Kg1 {[%clk 0:02:00.6]} 17... Ne4 {[%clk 0:02:33.7]} 18.
Nxe4 {[%clk 0:02:00.5]} 18... dxe4 {[%clk 0:02:34.6]} 19. Qe2 {[%clk 0:01:56.7]}
19... c5 {[%clk 0:02:32]} 20. dxc5 {[%clk 0:01:48.7]} 20... Rad8 {[%clk
0:02:29.6]} 21. Rad1 {[%clk 0:01:47.6]} 21... Qf5 {[%clk 0:02:25.7]} 22. Bxg7
{[%clk 0:01:44.4]} 22... Kxg7 {[%clk 0:02:26.6]} 23. b4 {[%clk 0:01:41.4]} 23...
Rd3 {[%clk 0:02:26.6]} 24. Qb2+ {[%clk 0:01:37]} 24... f6 {[%clk 0:02:23.7]} 25.
Rxd3 {[%clk 0:01:33.6]} 25... exd3 {[%clk 0:02:23.7]} 26. Qd4 {[%clk 0:01:34.3]}
26... h5 {[%clk 0:01:57.6]} 27. Rd1 {[%clk 0:01:29]} 27... h4 {[%clk 0:01:54.5]}
28. Qxd3 {[%clk 0:01:29.2]} 28... Qh5 {[%clk 0:01:48]} 29. Qd7 {[%clk
0:01:21.7]} 29... Kf8 {[%clk 0:01:47.4]} 30. g4 {[%clk 0:01:15.4]} 30... Qh7
{[%clk 0:01:37]} 31. Qxb7 {[%clk 0:01:03.6]} 31... h3 {[%clk 0:01:36.1]} 32. Qf3
{[%clk 0:00:54.8]} 32... Kg7 {[%clk 0:01:24.1]} 33. c6 {[%clk 0:00:54.3]} 33...
Qg8 {[%clk 0:01:24.3]} 34. Rd5 {[%clk 0:00:51.1]} 34... Qe6 {[%clk 0:01:20.5]}
35. b5 {[%clk 0:00:43.8]} 35... Rh8 {[%clk 0:01:20.3]} 36. f5 {[%clk 0:00:35.2]}
36... Qc8 {[%clk 0:01:05.7]} 37. Rd7 {[%clk 0:00:34.3]} 37... Qe8 {[%clk
0:01:00.9]} 38. Qe4 {[%clk 0:00:28.7]} 38... Kf8 {[%clk 0:00:57.5]} 39. Kf2
{[%clk 0:00:18.8]} 39... gxf5 {[%clk 0:00:54]} 40. gxf5 {[%clk 0:00:18.7]} 40...
Rg8 {[%clk 0:00:50]} 41. Qd5 {[%clk 0:00:15.8]} 41... Rg2+ {[%clk 0:00:46.5]}
42. Kf1 {[%clk 0:00:16]} 42... Qf7 {[%clk 0:00:10.7]} 43. Qxf7+ {[%clk
0:00:12.8]} 43... Kxf7 {[%clk 0:00:11.6]} 44. c7 {[%clk 0:00:12.5]} 44... Rxh2
{[%clk 0:00:11.8]} 45. c8=Q {[%clk 0:00:11.9]} 45... Rxa2 {[%clk 0:00:11.8]} 46.
Rd1 {[%clk 0:00:08.9]} 46... h2 {[%clk 0:00:12]} 47. Qe6+ {[%clk 0:00:08.8]}
47... Kg7 {[%clk 0:00:12.4]} 48. Qxe7+ {[%clk 0:00:09]} 48... Kh6 {[%clk
0:00:12.9]} 49. Qxf6+ {[%clk 0:00:09.4]} 49... Kh5 {[%clk 0:00:13.6]} 50. Qh8+
{[%clk 0:00:09.1]} 50... Kg4 {[%clk 0:00:13.9]} 51. f6 {[%clk 0:00:09.4]} 51...
Kg3 {[%clk 0:00:11.6]} 52. Qg7+ {[%clk 0:00:07.7]} 52... Kf3 {[%clk 0:00:11.6]}
53. Qh6 {[%clk 0:00:08]} 53... Rf2+ {[%clk 0:00:11.1]} 54. Ke1 {[%clk
0:00:07.2]} 54... Re2+ {[%clk 0:00:11.8]} 55. Kf1 {[%clk 0:00:07.7]} 55... Rf2+
{[%clk 0:00:12.4]} 56. Ke1 {[%clk 0:00:07.9]} 56... Re2+ {[%clk 0:00:13.2]} 57.
Kf1 {[%clk 0:00:08.6]} 57... Rf2+ {[%clk 0:00:13.7]} 1/2-1/2